bitfinex-derivatives/quotes_BNBF0:USTF0_20250907
["timestamp","ask_amount","ask_price","bid_price","bid_amount"]
[1757234803831,3.61591553,869.0,867.99,0.20006784]
[1757234804831,0.20011328,869.56,867.99,0.20006784]
[1757234818240,2.57879696,869.54,867.99,0.20006784]
[1757234818638,2.57879696,869.55,867.99,0.20006784]
[1757234820840,2.57879696,869.54,867.99,0.20006784]
[1757234821841,2.57879696,869.44,867.99,0.20006784]
[1757234822339,2.57879696,869.39,867.99,0.20006784]
[1757234823346,2.57879696,869.14,867.99,0.20006784]
[1757234824043,2.57879696,869.1,867.99,0.20006784]
[1757234824547,2.57879696,869.07,867.99,0.20006784]
[1757234825047,2.57879696,868.9,867.99,0.20006784]
[1757234825450,2.57879696,868.92,867.99,0.20006784]
[1757234826448,2.57879696,868.91,867.99,0.20006784]
[1757234827545,2.57879696,869.07,867.99,0.20006784]
[1757234828049,2.57879696,869.06,867.99,0.20006784]
[1757234828549,2.57879696,869.07,867.99,0.20006784]
[1757234829645,2.57879696,869.06,867.99,0.20006784]
[1757234830245,2.57879696,869.07,867.99,0.20006784]
[1757234830649,2.57879696,868.9,867.99,0.20006784]
[1757234831349,2.57879696,868.87,867.99,0.20006784]
[1757234831746,2.57879696,868.83,867.99,0.20006784]
[1757234832349,3.61591553,869.14,867.99,0.20006784]
[1757234832952,3.61591553,869.2,867.99,0.20006784]
[1757234833949,3.61591553,869.3,867.99,0.20006784]
[1757234834851,3.61591553,869.32,867.99,0.20006784]
[1757234835953,0.20011328,869.56,867.99,0.20006784]
[1757234842053,2.57692245,869.07,867.99,0.20006784]
[1757234842450,2.57692245,869.13,867.99,0.20006784]
[1757234843051,2.57692245,868.99,867.99,0.20006784]
[1757234843454,2.57692245,868.92,867.99,0.20006784]
[1757234844059,2.57692245,868.9,867.99,0.20006784]
[1757234844559,2.57692245,868.91,867.99,0.20006784]
[1757234845562,2.57692245,868.97,867.99,0.20006784]
[1757234846569,2.57692245,868.98,867.99,0.20006784]
[1757234847064,2.57692245,868.96,867.99,0.20006784]
[1757234847565,2.57692245,868.97,867.99,0.20006784]
[1757234848669,2.57692245,868.96,867.99,0.20006784]
[1757234849165,2.57692245,868.97,867.99,0.20006784]
[1757234849664,2.57692245,868.99,867.99,0.20006784]
[1757234850870,2.57692245,869.0,867.99,0.20006784]
[1757234851268,2.57692245,868.74,867.99,0.20006784]
[1757234851973,2.57692245,868.75,867.99,0.20006784]
[1757234852768,2.57692245,868.92,867.99,0.20006784]
[1757234853469,2.57692245,868.87,867.99,0.20006784]
[1757234854373,2.57692245,868.81,867.99,0.20006784]
[1757234855376,2.57692245,868.83,867.99,0.20006784]
[1757234855975,2.57692245,869.02,867.99,0.20006784]
[1757234856672,2.57692245,869.01,867.99,0.20006784]
[1757234857074,2.57692245,869.0,867.99,0.20006784]
[1757234857577,2.57692245,868.92,867.99,0.20006784]
[1757234857973,2.57692245,868.93,867.99,0.20006784]
[1757234858674,2.57692245,868.94,867.99,0.20006784]
[1757234859778,2.57692245,868.95,867.99,0.20006784]
[1757234860180,2.57692245,868.92,867.99,0.20006784]
[1757234860575,2.57692245,868.93,867.99,0.20006784]
[1757234861582,2.57692245,868.94,867.99,0.20006784]
[1757234862082,2.57692245,868.95,867.99,0.20006784]
[1757234862681,2.57692245,868.77,867.99,0.20006784]
[1757234863280,2.57692245,868.95,867.99,0.20006784]
[1757234864880,2.57692245,868.94,867.99,0.20006784]
[1757234866285,0.20011328,869.56,867.99,0.20006784]
[1757234873095,2.57692245,869.31,867.99,0.20006784]
[1757234873491,2.57692245,869.45,867.99,0.20006784]
[1757234874592,2.57692245,869.44,867.99,0.20006784]
[1757234875598,2.57692245,869.1,867.99,0.20006784]
[1757234876100,2.57692245,869.09,867.99,0.20006784]
[1757234876600,2.57692245,869.08,867.99,0.20006784]
[1757234877601,2.57692245,869.07,867.99,0.20006784]
[1757234878098,2.57692245,869.05,867.99,0.20006784]
[1757234879398,2.57692245,869.04,867.99,0.20006784]
[1757234880204,2.57692245,869.03,867.99,0.20006784]
[1757234881305,2.57692245,869.02,867.99,0.20006784]
[1757234881800,2.57692245,868.99,867.99,0.20006784]
[1757234882401,2.57692245,868.97,867.99,0.20006784]
[1757234882906,2.57692245,868.95,867.99,0.20006784]
[1757234883304,2.57692245,868.7,867.99,0.20006784]
[1757234884003,2.57692245,868.63,867.99,0.20006784]
[1757234884408,2.57692245,868.57,867.99,0.20006784]
[1757234885609,2.57692245,868.55,867.99,0.20006784]
[1757234886509,2.57692245,868.53,867.99,0.03535764]
[1757234886710,2.57692245,868.53,866.62,0.76787394]
[1757234886906,2.57692245,868.53,866.63,1.49074713]
[1757234887212,2.57692245,868.53,866.64,0.72287319]
[1757234887404,2.57692245,868.53,866.65,0.72287319]
[1757234887704,2.57692245,868.5,866.66,0.72287319]
[1757234887903,2.57692245,868.5,866.63,0.76787394]
[1757234887904,2.57692245,868.5,866.67,0.72287319]
[1757234888106,2.57692245,868.5,866.68,0.72287319]
[1757234888307,2.57692245,868.5,866.69,0.72287319]
[1757234888505,2.57692245,868.43,866.7,0.72287319]
[1757234888713,2.57692245,868.43,866.71,0.72287319]
[1757234888909,2.57692245,868.43,866.72,0.72287319]
[1757234889110,2.57692245,868.43,866.73,0.72287319]
[1757234889406,2.57692245,868.43,866.74,0.72287319]
[1757234889609,2.57692245,868.43,866.64,0.76787394]
[1757234889610,2.57692245,868.4,867.15,0.20023649]
[1757234890209,2.57692245,868.48,867.15,0.20023649]
[1757234890613,2.57692245,868.47,867.15,0.20023649]
[1757234891713,2.57692245,868.46,867.15,0.20023649]
[1757234892309,2.57692245,868.45,867.15,0.20023649]
[1757234893208,2.57692245,868.65,867.15,0.20023649]
[1757234893710,2.57692245,868.43,867.15,0.20023649]
[1757234894817,2.57692245,868.42,867.15,0.20023649]
[1757234895014,1.14004539,868.42,867.15,0.20023649]
[1757234895320,3.61591553,868.74,867.15,0.20023649]
[1757234896118,3.61591553,868.73,867.15,0.20023649]
[1757234896414,3.61591553,868.73,867.16,0.74230068]
[1757234896614,3.61591553,868.73,867.15,0.20023649]
[1757234896813,3.61591553,868.73,867.16,0.74230068]
[1757234897115,3.61591553,868.65,867.15,0.20023649]
[1757234898218,3.61591553,868.63,867.15,0.20023649]
[1757234899219,3.61591553,868.62,867.15,0.20023649]
[1757234900520,3.61591553,868.6,867.16,0.71552844]
[1757234900819,3.61591553,868.6,867.15,0.20023649]
[1757234901020,3.61591553,868.6,867.16,0.71552844]
[1757234901221,3.61591553,868.6,867.15,0.20023649]
[1757234901421,3.61591553,868.59,867.16,0.71551265]
[1757234901620,2.17904492,868.59,867.15,0.20023649]
[1757234901820,2.17904492,868.59,867.16,0.71552205]
[1757234902116,2.17904492,868.59,867.15,0.20023649]
[1757234902420,5.17691132,869.06,867.16,0.71552205]
[1757234902620,5.17691132,869.06,867.17,0.71552205]
[1757234902821,5.17691132,869.06,867.18,0.71552205]
[1757234903124,5.17691132,869.06,867.27,0.76787394]
[1757234903318,5.17691132,869.06,867.25,0.76787394]
[1757234904122,2.58246149,868.65,867.25,0.76787394]
[1757234904422,2.58246149,868.65,867.25,1.48339599]
[1757234904620,2.58246149,868.65,867.26,0.71552205]
[1757234904818,2.58246149,868.65,867.27,0.71552205]
[1757234905023,1.14559061,868.65,867.28,0.71552205]
[1757234905222,1.14559061,868.65,867.29,0.71552205]
[1757234905421,1.14559061,868.65,867.3,0.71552205]
[1757234905721,5.17691132,869.37,867.31,0.71552205]
[1757234905920,5.17691132,869.37,867.32,0.71552205]
[1757234906121,5.17691132,869.37,867.33,0.71552205]
[1757234906323,5.17691132,869.37,867.34,0.71552205]
[1757234906521,5.17691132,869.42,867.35,0.71552205]
[1757234906722,5.17691132,869.42,867.36,0.71552205]
[1757234907019,5.17691132,869.42,867.37,0.71552205]
[1757234907224,5.17691132,869.42,867.38,0.71552205]
[1757234907425,5.17691132,869.42,867.39,0.71552205]
[1757234907622,5.17691132,869.42,867.4,0.71552205]
[1757234907819,5.17691132,869.42,867.41,0.71552205]
[1757234908023,5.17691132,869.42,867.42,0.71552205]
[1757234908224,5.17691132,869.42,867.43,0.71552205]
[1757234908424,5.17691132,869.42,867.44,0.71552205]
[1757234908625,5.17691132,869.36,867.45,0.71552205]
[1757234908825,5.17691132,869.36,867.46,0.71552205]
[1757234909025,5.17691132,869.36,867.47,0.71552205]
[1757234909324,5.17691132,869.36,867.48,0.71552205]
[1757234909522,5.17691132,869.36,867.23,0.76787394]
[1757234909723,3.61513727,868.92,867.23,0.76787394]
[1757234910723,3.61513727,868.91,867.23,0.76787394]
[1757234911127,3.61513727,868.91,867.22,0.76787394]
[1757234911627,3.61513727,868.97,867.22,0.76787394]
[1757234912927,3.61513727,868.97,867.15,0.20023649]
[1757234913725,3.61513727,868.56,867.15,0.20023649]
[1757234914031,2.58221865,868.27,867.15,0.20023649]
[1757234914332,1.14535653,868.27,867.15,0.20023649]
[1757234914531,3.61513727,868.56,867.15,0.20023649]
[1757234915027,3.61513727,868.69,867.15,0.20023649]
[1757234915928,5.17691132,869.17,867.16,0.72777872]
[1757234916128,5.17691132,869.17,867.17,0.72777872]
[1757234916429,5.17691132,869.17,867.18,0.72777872]
[1757234916630,5.17691132,869.17,867.19,0.72777872]
[1757234916829,3.61513727,869.55,867.2,0.72777872]
[1757234917030,3.61513727,869.55,867.21,0.73059036]
[1757234917228,3.61513727,869.55,867.15,0.20023649]
[1757234917425,3.61513727,869.55,867.16,0.73059481]
[1757234917627,3.61513727,869.55,867.17,0.73059481]
[1757234917830,3.61513727,869.55,867.18,0.73059481]
[1757234918030,3.81525055,869.56,867.19,0.73059481]
[1757234918228,3.81525055,869.56,867.15,0.20023649]
[1757234918229,3.81525055,869.56,867.2,0.73059481]
[1757234918431,3.81525055,869.56,867.15,0.20023649]
[1757234918628,3.81525055,869.56,867.16,0.73058908]
[1757234918929,3.61513727,869.55,867.17,0.73058908]
[1757234919127,3.61513727,869.55,867.18,0.73058908]
[1757234919326,3.61513727,869.55,867.19,0.73058908]
[1757234919530,3.61513727,869.55,867.2,0.73058908]
[1757234919729,3.61513727,869.55,867.15,0.20023649]
[1757234919933,3.61513727,869.55,867.16,0.73058485]
[1757234920129,3.61513727,869.55,867.17,0.73058485]
[1757234920330,3.61513727,869.55,867.18,0.73058485]
[1757234920532,3.61513727,869.55,867.19,0.73058485]
[1757234920727,3.61513727,869.55,867.2,0.73058485]
[1757234920930,3.61513727,869.55,867.15,0.20023649]
[1757234921132,3.61513727,869.55,867.16,0.73058174]
[1757234921432,3.61513727,869.55,867.17,0.73058174]
[1757234921629,3.61513727,869.55,867.18,0.73058174]
[1757234921829,3.61513727,869.55,867.19,0.73058174]
[1757234922131,3.61513727,869.55,867.2,0.73058174]
[1757234922432,3.61513727,869.55,867.15,0.20023649]
[1757234922630,3.61513727,869.55,867.16,0.7305748]
[1757234922834,3.61513727,869.55,867.17,0.7305748]
[1757234923033,3.81525055,869.56,867.18,0.7305748]
[1757234923329,2.58211362,869.09,867.19,0.7305748]
[1757234923530,2.58211362,869.09,867.2,0.7305748]
[1757234923728,2.58211362,869.09,867.21,0.7305748]
[1757234923932,2.58211362,869.09,867.15,0.20023649]
[1757234924234,2.58211362,869.09,867.16,0.7305845]
[1757234924434,2.58211362,869.09,867.17,0.7305845]
[1757234924632,2.58211362,869.09,867.18,0.7305845]
[1757234924830,2.58211362,869.09,867.19,0.7305845]
[1757234925033,2.58211362,869.09,867.2,0.7305845]
[1757234925230,2.58211362,869.09,867.21,0.7305845]
[1757234925530,2.58211362,869.09,867.15,0.20023649]
[1757234925736,2.58211362,868.64,867.16,0.73058808]
[1757234925935,2.58211362,868.64,867.17,0.73058808]
[1757234926237,2.58211362,868.69,867.15,0.20023649]
[1757234926432,2.58211362,868.69,867.16,0.73059329]
[1757234926636,2.58211362,868.69,867.17,0.73059329]
[1757234926937,2.58211362,868.69,867.18,0.73059329]
[1757234927237,2.58211362,868.69,867.15,0.20023649]
[1757234927538,2.58211362,868.69,867.16,0.73062377]
[1757234927733,2.58211362,868.69,867.17,0.73062377]
[1757234927933,2.58211362,868.69,867.18,0.73062377]
[1757234928138,2.58211362,868.69,867.15,0.20023649]
[1757234928338,2.58211362,868.69,867.16,0.73063041]
[1757234928543,2.58211362,868.69,867.17,0.73063041]
[1757234928834,2.58211362,868.69,867.18,0.73063041]
[1757234929038,2.58211362,868.69,867.15,0.20023649]
[1757234929239,2.58211362,868.69,867.16,0.73064968]
[1757234929438,2.58211362,868.47,867.15,0.20023649]
[1757234929640,2.58211362,868.47,867.16,0.73067781]
[1757234929839,2.58211362,868.47,867.15,0.20023649]
[1757234930038,2.58211362,868.47,867.16,0.73067781]
[1757234930238,2.58211362,868.47,867.17,0.73068464]
[1757234930438,2.58211362,868.47,867.15,0.20023649]
[1757234930639,2.58211362,868.47,867.16,0.73070891]
[1757234930840,2.58211362,868.47,867.17,0.73070891]
[1757234931043,2.58211362,868.5,867.15,0.20023649]
[1757234931336,2.58211362,868.5,867.16,0.73070895]
[1757234931537,2.58211362,868.5,867.17,0.73070895]
[1757234931735,2.58211362,868.5,867.15,0.20023649]
[1757234933538,2.58211362,868.5,867.16,0.71084636]
[1757234933742,2.58211362,868.41,867.15,0.20023649]
[1757234934042,3.61513727,868.73,867.16,0.71083808]
[1757234934239,3.61513727,868.73,867.15,0.20023649]
[1757234934442,3.61513727,868.73,867.16,0.71088149]
[1757234934742,3.61513727,868.78,867.17,0.738747]
[1757234935044,3.61513727,868.78,867.18,0.738747]
[1757234935342,3.61513727,868.78,867.19,0.738747]
[1757234935540,3.61513727,868.78,867.2,0.738747]
[1757234935843,3.61513727,868.68,867.21,0.738747]
[1757234936139,3.61513727,868.68,867.15,0.20023649]
[1757234936343,3.61513727,868.68,867.16,0.72934925]
[1757234936543,3.61513727,868.68,867.17,0.72934925]
[1757234936744,3.61513727,868.68,867.18,0.72934925]
[1757234936944,3.61513727,868.68,867.19,0.72934925]
[1757234937146,3.61513727,868.68,867.2,0.72934925]
[1757234937340,3.61513727,868.68,867.21,0.72934925]
[1757234937541,3.61513727,868.68,867.15,0.20023649]
[1757234937843,3.61513727,868.67,867.16,0.72946307]
[1757234938045,3.61513727,868.67,867.17,0.72946307]
[1757234938341,3.61513727,868.67,867.18,0.72946307]
[1757234938541,3.61513727,868.67,867.19,0.72946307]
[1757234938841,3.61513727,868.67,867.2,0.72946307]
[1757234939047,3.61513727,869.05,867.21,0.72946307]
[1757234939241,3.61513727,869.05,867.22,0.72946307]
[1757234939440,3.61513727,869.05,867.23,0.72946307]
[1757234939641,3.61513727,869.05,867.24,0.72946307]
[1757234939946,0.20011328,869.56,867.25,0.72946307]
[1757234940148,0.20011328,869.56,867.26,0.72946307]
[1757234940342,0.20011328,869.56,867.27,0.72946307]
[1757234940541,0.20011328,869.56,867.28,0.72946307]
[1757234940844,0.20011328,869.56,867.29,0.72946307]
[1757234941041,0.20011328,869.56,867.3,0.72946307]
[1757234941342,0.20011328,869.56,867.31,0.72946307]
[1757234941541,0.20011328,869.56,867.32,0.72946307]
[1757234941740,0.20011328,869.56,867.33,0.72946307]
[1757234941944,0.20011328,869.56,867.34,0.72946307]
[1757234942147,0.20011328,869.56,867.35,0.72946307]
[1757234942445,0.20011328,869.56,867.36,0.72946307]
[1757234942641,0.20011328,869.56,867.37,0.72946307]
[1757234942845,0.20011328,869.56,867.38,0.72946307]
[1757234943039,0.20011328,869.56,867.39,0.72946307]
[1757234943245,0.20011328,869.56,867.4,0.72946307]
[1757234943447,0.20011328,869.56,867.41,0.72946307]
[1757234943644,0.20011328,869.56,867.42,0.72946307]
[1757234943843,0.20011328,869.56,867.43,0.72946307]
[1757234944143,0.20011328,869.56,867.44,0.72946307]
[1757234944341,0.20011328,869.56,867.45,0.72946307]
[1757234944546,0.20011328,869.56,867.46,0.72946307]
[1757234944742,0.20011328,869.56,867.47,0.72946307]
[1757234945043,0.20011328,869.56,867.48,0.72946307]
[1757234945246,0.20011328,869.56,867.49,0.72946307]
[1757234945447,0.20011328,869.56,867.5,0.72946307]
[1757234945646,0.20011328,869.56,867.51,0.72946307]
[1757234945847,0.20011328,869.56,867.52,0.72946307]
[1757234946149,0.20011328,869.56,867.15,0.20023649]
[1757234946348,0.20011328,869.56,867.16,0.72677531]
[1757234946647,0.20011328,869.56,867.17,0.72677531]
[1757234946844,0.20011328,869.56,867.18,0.72677531]
[1757234947048,0.20011328,869.56,867.19,0.72677531]
[1757234947343,0.20011328,869.56,867.2,0.72677531]
[1757234947650,0.20011328,869.56,867.21,0.72677531]
[1757234947945,0.20011328,869.56,867.22,0.72677531]
[1757234948144,0.20011328,869.56,867.23,0.72677531]
[1757234948445,0.20011328,869.56,867.24,0.72677531]
[1757234948649,0.20011328,869.56,867.25,0.72677531]
[1757234948949,0.20011328,869.56,867.26,0.72677531]
[1757234949145,0.20011328,869.56,867.27,0.72677531]
[1757234949345,0.20011328,869.56,867.28,0.72677531]
[1757234949547,0.20011328,869.56,867.29,0.72677531]
[1757234949745,0.20011328,869.56,867.3,0.72677531]
[1757234949948,0.20011328,869.56,867.31,0.72677531]
[1757234950144,0.20011328,869.56,867.32,0.72677531]
[1757234950348,0.20011328,869.56,867.33,0.72677531]
[1757234950545,0.20011328,869.56,867.34,0.72677531]
[1757234950846,0.20011328,869.56,867.35,0.72677531]
[1757234951045,0.20011328,869.56,867.36,0.72677531]
[1757234951244,0.20011328,869.56,867.37,0.72677531]
[1757234951445,0.20011328,869.56,867.38,0.72677531]
[1757234951649,0.20011328,869.56,867.39,0.72677531]
[1757234951848,0.20011328,869.56,867.15,0.20023649]
[1757234951849,0.20011328,869.56,867.4,0.72677531]
[1757234952048,0.20011328,869.56,867.41,0.72677531]
[1757234952248,0.20011328,869.56,867.42,0.72677531]
[1757234952447,0.20011328,869.56,867.43,0.72677531]
[1757234952645,0.20011328,869.56,867.44,0.72677531]
[1757234952945,0.20011328,869.56,867.45,0.72677531]
[1757234953151,0.20011328,869.56,867.46,0.72677531]
[1757234953350,0.20011328,869.56,867.47,0.72677531]
[1757234953550,0.20011328,869.56,867.48,0.72677531]
[1757234953751,0.20011328,869.56,867.49,0.72677531]
[1757234953950,0.20011328,869.56,867.5,0.72677531]
[1757234954147,0.20011328,869.56,867.51,0.72677531]
[1757234954447,0.20011328,869.56,867.52,0.72677531]
[1757234954751,0.20011328,869.56,867.53,0.72677531]
[1757234955052,0.20011328,869.56,867.54,0.72677531]
[1757234955350,0.20011328,869.56,867.55,0.72677531]
[1757234955550,0.20011328,869.56,867.56,0.72677531]
[1757234955751,0.20011328,869.56,867.57,0.72677531]
[1757234955952,0.20011328,869.56,867.15,0.97141177]
[1757234956146,0.20011328,869.56,867.16,0.7214673]
[1757234956451,0.20011328,869.56,867.19,0.77117528]
[1757234956647,0.20011328,869.56,867.2,0.7214673]
[1757234956847,2.57946965,869.47,867.21,0.7214673]
[1757234957049,2.57946965,869.47,867.21,0.77117528]
[1757234957249,2.57946965,869.47,867.22,0.7214673]
[1757234957545,2.57946965,869.51,867.23,0.7214673]
[1757234957748,2.57946965,869.51,867.24,0.7214673]
[1757234957949,2.57946965,869.55,867.25,0.7214673]
[1757234958147,2.57946965,869.55,867.26,0.7214673]
[1757234958351,2.57946965,869.55,867.27,0.7214673]
[1757234958556,2.57946965,869.55,867.28,0.7214673]
[1757234958852,2.57946965,869.55,867.21,0.77117528]
[1757234958853,2.57946965,869.55,867.29,0.7214673]
[1757234959049,2.57946965,869.55,867.3,0.7214673]
[1757234959252,2.57946965,869.55,867.31,0.7214673]
[1757234959552,2.77958293,869.56,867.32,0.7214673]
[1757234959849,2.77958293,869.56,867.33,0.7214673]
[1757234960052,2.77958293,869.56,867.34,0.7214673]
[1757234960352,2.77958293,869.56,867.35,0.7214673]
[1757234960551,0.20011328,869.56,867.36,0.7214673]
[1757234960850,0.20011328,869.56,867.37,0.7214673]
[1757234961054,2.57946965,869.52,867.38,0.7214673]
[1757234961350,2.57946965,869.52,867.39,0.7214673]
[1757234961653,2.57946965,869.53,867.4,0.7214673]
[1757234961953,2.57946965,869.53,867.41,0.7214673]
[1757234962150,2.57946965,869.52,867.42,0.7214673]
[1757234962449,2.57946965,869.52,867.43,0.7214673]
[1757234962753,2.57946965,869.53,867.44,0.7214673]
[1757234962953,2.57946965,869.53,867.45,0.7214673]
[1757234963153,2.57946965,869.53,867.15,0.20023649]
[1757234963353,2.57946965,869.53,867.16,0.72075677]
[1757234963554,2.57946965,869.32,867.17,0.72075677]
[1757234963749,2.57946965,869.32,867.18,0.72075677]
[1757234963952,2.57946965,869.32,867.19,0.72075677]
[1757234964156,2.57946965,869.32,867.2,0.72075677]
[1757234964354,2.57946965,869.32,867.21,0.72075677]
[1757234964551,2.57946965,869.32,867.22,0.72075677]
[1757234964751,2.57946965,869.33,867.23,0.72075677]
[1757234964954,2.57946965,869.33,867.24,0.72075677]
[1757234965153,2.57946965,869.33,867.15,0.20023649]
[1757234965154,2.57946965,869.32,867.25,0.72075677]
[1757234965354,2.57946965,869.32,867.26,0.72075677]
[1757234965554,2.57946965,869.32,867.27,0.72075677]
[1757234965752,2.57946965,869.32,867.28,0.72075677]
[1757234965955,2.57946965,869.32,867.29,0.72075677]
[1757234966156,2.57946965,869.32,867.15,0.20023649]
[1757234966157,2.57946965,869.32,867.3,0.72075677]
[1757234966453,2.57946965,869.09,867.31,0.72075677]
[1757234966656,2.57946965,869.09,867.32,0.72075677]
[1757234966860,2.57946965,869.0,867.33,0.72075677]
[1757234967156,2.57946965,869.0,867.34,0.72075677]
[1757234967359,2.57946965,869.01,867.35,0.72075677]
[1757234967559,2.57946965,869.01,867.36,0.72075677]
[1757234967859,2.57946965,869.01,867.15,0.20023649]
[1757234967860,2.57946965,869.02,867.37,0.72075677]
[1757234968155,2.57946965,869.02,867.38,0.72075677]
[1757234968357,2.57946965,869.01,867.15,0.20023649]
[1757234968557,2.57946965,869.01,867.16,0.72056363]
[1757234968761,2.57946965,869.0,867.17,0.72056363]
[1757234968955,2.57946965,869.0,867.18,0.72056363]
[1757234969158,2.57946965,869.0,867.19,0.72056363]
[1757234969358,2.57946965,869.0,867.2,0.72056363]
[1757234969561,2.57946965,869.0,867.21,0.72056363]
[1757234969860,2.57946965,869.0,867.22,0.72056363]
[1757234970057,2.57946965,869.0,867.23,0.72056363]
[1757234970361,2.57946965,869.16,867.24,0.72056363]
[1757234970563,2.57946965,869.16,867.25,0.72056363]
[1757234970757,2.57946965,869.16,867.26,0.72056363]
[1757234970961,2.57946965,869.23,867.27,0.72056363]
[1757234971160,2.57946965,869.23,867.28,0.72056363]
[1757234971358,2.57946965,869.21,867.29,0.72056363]
[1757234971562,2.57946965,869.21,867.15,0.20023649]
[1757234971759,2.57946965,869.21,867.16,0.72093922]
[1757234971963,3.81525055,869.56,867.17,0.72093922]
[1757234972161,3.81525055,869.56,867.18,0.72093922]
[1757234972360,0.20011328,869.56,867.19,0.72093922]
[1757234972561,0.20011328,869.56,867.2,0.72093922]
[1757234972760,0.20011328,869.56,867.21,0.72093922]
[1757234973061,0.20011328,869.56,867.22,0.72093922]
[1757234973261,0.20011328,869.56,867.23,0.72093922]
[1757234973465,0.20011328,869.56,867.24,0.72093922]
[1757234973666,0.20011328,869.56,867.25,0.72093922]
[1757234973965,0.20011328,869.56,867.26,0.72093922]
[1757234974165,0.20011328,869.56,867.27,0.72093922]
[1757234974465,0.20011328,869.56,867.28,0.72093922]
[1757234974664,0.20011328,869.56,867.29,0.72093922]
[1757234974861,0.20011328,869.56,867.3,0.72093922]
[1757234975059,0.20011328,869.56,867.31,0.72093922]
[1757234975262,0.20011328,869.56,867.32,0.72093922]
[1757234975565,0.20011328,869.56,867.33,0.72093922]
[1757234975866,0.20011328,869.56,867.34,0.72093922]
[1757234976065,0.20011328,869.56,867.35,0.72093922]
[1757234976365,0.20011328,869.56,867.36,0.72093922]
[1757234976662,2.57946965,869.52,867.37,0.72093922]
[1757234976861,2.57946965,869.52,867.15,0.20023649]
[1757234977064,2.57946965,869.52,867.16,0.72141939]
[1757234977365,2.57946965,869.52,867.17,0.72141939]
[1757234977566,2.57946965,869.51,867.18,0.72141939]
[1757234977862,2.57946965,869.51,867.19,0.72141939]
[1757234978064,2.57946965,869.46,867.2,0.72141939]
[1757234978258,2.57946965,869.46,867.21,0.72141939]
[1757234978461,2.57946965,869.46,867.22,0.72141939]
[1757234978660,2.57946965,869.45,867.23,0.72141939]
[1757234978861,2.57946965,869.45,867.24,0.72141939]
[1757234979064,2.57946965,869.45,867.25,0.72141939]
[1757234979265,2.57946965,869.45,867.26,0.72141939]
[1757234979466,2.57946965,869.45,867.27,0.72141939]
[1757234979765,2.57946965,869.44,867.28,0.72141939]
[1757234980059,2.57946965,869.44,867.29,0.72141939]
[1757234980261,2.57946965,869.41,867.3,0.72141939]
[1757234980562,2.57946965,869.41,867.31,0.72141939]
[1757234980761,2.57946965,869.4,867.32,0.72141939]
[1757234980965,2.57946965,869.4,867.33,0.72141939]
[1757234981261,2.57946965,869.27,867.34,0.72141939]
[1757234981461,2.57946965,869.27,867.15,0.20023649]
[1757234981661,2.57946965,869.27,867.16,0.72194213]
[1757234981861,2.57946965,869.24,867.17,0.72194213]
[1757234982064,2.57946965,869.24,867.18,0.72194213]
[1757234982263,2.57946965,869.23,867.19,0.72194213]
[1757234982460,2.57946965,869.23,867.2,0.72194213]
[1757234982666,2.57946965,869.23,867.21,0.72194213]
[1757234982866,2.57946965,869.22,867.22,0.72194213]
[1757234983163,2.57946965,869.22,867.23,0.72194213]
[1757234983362,0.20011328,869.56,867.24,0.72194213]
[1757234983363,2.57946965,869.11,867.24,0.72194213]
[1757234983561,2.57946965,869.11,867.25,0.72194213]
[1757234983765,2.57946965,869.11,867.15,0.20023649]
[1757234983967,2.57946965,869.12,867.16,0.7221129]
[1757234984264,2.57946965,869.12,867.17,0.7221129]
[1757234984462,2.57946965,869.1,867.18,0.7221129]
[1757234984666,2.57946965,869.1,867.19,0.7221129]
[1757234984867,2.57946965,869.1,867.2,0.7221129]
[1757234985069,2.57946965,869.1,867.21,0.7221129]
[1757234985274,2.57946965,869.1,867.22,0.7221129]
[1757234985469,2.57946965,869.08,867.23,0.7221129]
[1757234985669,2.57946965,869.08,867.15,0.20023649]
[1757234985971,2.57946965,869.02,867.16,0.72232355]
[1757234986172,2.57946965,869.02,867.17,0.72232355]
[1757234986370,2.57946965,869.03,867.18,0.72232355]
[1757234986569,2.57946965,869.03,867.19,0.72232355]
[1757234986873,2.57946965,869.03,867.2,0.72232355]
[1757234987074,2.57946965,869.03,867.21,0.72232355]
[1757234987369,2.57946965,869.03,867.22,0.72232355]
[1757234987573,2.57946965,869.01,867.23,0.72232355]
[1757234987773,2.57946965,869.01,867.15,0.20023649]
[1757234988075,2.57946965,869.0,867.16,0.72250299]
[1757234988274,2.57946965,869.0,867.17,0.72250299]
[1757234988472,2.57946965,868.99,867.18,0.72250299]
[1757234988672,2.57946965,868.99,867.19,0.72250299]
[1757234988876,2.57946965,868.99,867.2,0.72250299]
[1757234989072,2.57946965,868.99,867.21,0.72250299]
[1757234989277,2.57946965,868.99,867.22,0.72250299]
[1757234989575,2.57946965,868.93,867.23,0.72250299]
[1757234989772,2.57946965,868.93,867.15,0.20023649]
[1757234989977,2.57946965,868.93,867.16,0.7227129]
[1757234990179,2.57946965,868.92,867.17,0.7227129]
[1757234990477,2.57946965,868.92,867.18,0.7227129]
[1757234990676,2.57946965,868.91,867.19,0.7227129]
[1757234990872,2.57946965,868.91,867.2,0.7227129]
[1757234991071,2.57946965,868.91,867.21,0.7227129]
[1757234991278,2.57946965,868.82,867.22,0.7227129]
[1757234991478,2.57946965,868.82,867.23,0.7227129]
[1757234991679,2.57946965,868.81,867.24,0.7227129]
[1757234991878,2.57946965,868.81,867.15,0.20023649]